bitfinex/quotes_SOLUSD_20250922
["timestamp","ask_amount","ask_price","bid_price","bid_amount"]
[1758531463824,8.16967739,221.83,221.82,0.1]
[1758531464026,43.12967739,221.83,221.82,0.1]
[1758531464339,46.17682845,221.83,221.82,0.1]
[1758531464838,11.21682845,221.83,221.82,0.1]
[1758531465021,72.17682845,221.83,221.82,0.1]
[1758531465434,26.0,221.8,221.71,0.69]
[1758531465611,29.74687045,221.76,221.71,0.69]
[1758531465806,26.0,221.72,221.71,0.69]
[1758531466034,64.84172085,221.72,221.68,0.1]
[1758531466236,2.98172085,221.71,221.68,0.1]
[1758531466433,38.84172085,221.71,221.68,0.1]
[1758531466613,2.98172085,221.7,221.69,0.69]
[1758531467435,7.49232075,221.7,221.69,0.69]
[1758531468640,4.5093795,221.76,221.69,0.69]
[1758531468825,2.99370372,221.75,221.69,5.20078064]
[1758531469022,2.99370372,221.76,221.72,2.04444788]
[1758531469220,19.44,221.78,221.73,0.69]
[1758531469423,4.5093795,221.76,221.73,0.69]
[1758531470140,43.36308322,221.76,221.68,13.69559401]
[1758531470335,43.36308322,221.76,221.74,0.69]
[1758531470336,2.99370372,221.75,221.74,0.69]
[1758531470636,2.99370372,221.75,221.74,42.32071469]
[1758531470840,2.99370372,221.75,221.74,41.63071469]
[1758531471042,2.99370372,221.75,221.74,42.32071469]
[1758531471647,7.50328658,221.75,221.74,42.32071469]
[1758531472155,7.50328658,221.75,221.68,150.14004189]
[1758531472156,54.61724373,221.75,221.68,41.73071469]
[1758531472345,2.99370372,221.74,221.68,41.73071469]
[1758531472647,35.86,221.73,221.68,42.42071469]
[1758531472944,2.99370372,221.72,221.69,0.69]
[1758531473148,35.86,221.71,221.7,0.69]
[1758531473847,40.37039646,221.71,221.7,0.69]
[1758531475451,11.27513834,221.73,221.7,0.69]
[1758531475452,4.50998962,221.73,221.7,0.69]
[1758531475623,7.50000849,221.73,221.71,0.69]
[1758531475945,35.82,221.73,221.71,0.69]
[1758531476148,26.0,221.74,221.71,42.32071469]
[1758531476340,26.0,221.73,221.72,0.69]
[1758531476541,26.0,221.73,221.71,41.63071469]
[1758531476741,26.0,221.73,221.72,0.69]
[1758531477242,26.0,221.73,221.72,42.32071469]
[1758531477853,4.50983191,221.74,221.72,42.32071469]
[1758531478050,4.50983191,221.74,221.73,0.68]
[1758531478241,4.50983191,221.74,221.73,42.31071469]
[1758531478552,4.50943618,221.76,221.73,42.31071469]
[1758531478730,35.82,221.76,221.74,0.68]
[1758531478927,26.0,221.74,221.68,0.1]
[1758531479255,35.82,221.73,221.69,0.68]
[1758531479683,4.51019303,221.72,221.69,0.68]
[1758531481334,4.51019303,221.72,221.68,0.1]
[1758531481641,4.5105999,221.7,221.68,0.1]
[1758531481840,35.86,221.69,221.68,0.1]
[1758531482037,36.55,221.69,221.68,0.1]
[1758531482427,35.86,221.69,221.68,0.1]
[1758531482830,4.5105999,221.7,221.68,0.78]
[1758531483030,35.86,221.69,221.68,0.78]
[1758531483246,4.5105999,221.7,221.68,0.78]
[1758531484058,40.3704178,221.71,221.68,0.1]
[1758531484463,4.5104178,221.71,221.68,0.1]
[1758531484767,0.69,221.73,221.68,0.1]
[1758531484768,4.51006891,221.73,221.69,0.68]
[1758531485136,4.5093795,221.76,221.7,13.59559401]
[1758531485337,35.84,221.75,221.71,0.68]
[1758531485564,40.34962237,221.75,221.7,94.19559401]
[1758531485744,40.34962237,221.75,221.72,0.68]
[1758531485939,26.0,221.75,221.73,0.68]
[1758531487260,3.73308156,221.83,221.73,80.6]
[1758531487465,5.19795654,221.83,221.75,13.59559401]
[1758531487652,36.51,221.82,221.76,0.68]
[1758531487848,2.98965717,221.81,221.76,80.6]
[1758531488152,26.0,221.79,221.67,13.59559401]
[1758531488469,26.0,221.79,221.69,14.27559401]
[1758531488470,2.98965717,221.78,221.69,14.27559401]
[1758531488668,0.69,221.77,221.69,14.27559401]
[1758531488877,35.88,221.76,221.69,14.27559401]
[1758531489080,35.88,221.76,221.69,13.59559401]
[1758531489369,40.38908652,221.78,221.7,5.1904397]
[1758531489544,4.50878957,221.79,221.72,13.59559401]
[1758531489744,4.50878957,221.79,221.73,0.68]
[1758531489944,7.49799254,221.79,221.73,0.68]
[1758531490848,4.50878957,221.79,221.74,13.59559401]
[1758531491070,7.49859882,221.79,221.75,0.68]
[1758531491267,7.49859882,221.79,221.76,0.68]
[1758531491896,7.49859882,221.79,221.74,13.59559401]
[1758531492190,7.49859882,221.79,221.75,0.68]
[1758531492392,7.49859882,221.79,221.74,13.59559401]
[1758531492590,26.0,221.76,221.62,3.20287391]
[1758531492793,61.92,221.77,221.69,0.68]
[1758531492965,0.69,221.8,221.7,13.59559401]
[1758531493295,35.98,221.79,221.71,0.68]
[1758531493794,26.0,221.8,221.71,0.68]
[1758531494092,66.48858746,221.8,221.73,13.59559401]
[1758531494272,26.0,221.79,221.74,0.7]
[1758531494471,40.46839981,221.81,221.74,0.7]
[1758531494685,2.99129363,221.8,221.75,0.7]
[1758531494891,66.46822637,221.82,221.75,0.7]
[1758531495200,2.99137603,221.81,221.76,0.7]
[1758531495494,2.99184974,221.81,221.77,13.59559401]
[1758531495714,0.66,221.8,221.75,13.59559401]
[1758531496068,7.50006786,221.82,221.76,0.7]
[1758531496268,26.0,221.8,221.7,80.6]
[1758531496464,39.69184974,221.79,221.69,13.59559401]
[1758531496770,3.65184974,221.78,221.71,13.59559401]
[1758531496973,39.01184974,221.77,221.71,14.29559401]
[1758531497277,2.99184974,221.76,221.71,14.29559401]
[1758531497478,2.99184974,221.75,221.71,14.29559401]
[1758531497680,2.99184974,221.75,221.71,94.19559401]
[1758531497988,2.99184974,221.76,221.71,94.19559401]
[1758531498164,2.99184974,221.75,221.71,94.19559401]
[1758531498363,0.66,221.75,221.71,94.19559401]
[1758531498581,3.65184974,221.74,221.71,94.19559401]
[1758531498787,2.99184974,221.75,221.71,94.19559401]
[1758531499091,2.99184974,221.74,221.72,0.7]
[1758531499291,2.99184974,221.75,221.72,0.7]
[1758531499492,2.99184974,221.74,221.72,0.7]
[1758531499672,2.99184974,221.75,221.73,0.7]
[1758531499872,2.99184974,221.77,221.74,0.7]
[1758531500087,2.99184974,221.77,221.75,0.7]
[1758531500288,43.5006306,221.79,221.75,0.7]
[1758531500491,2.99184974,221.78,221.75,0.7]
[1758531500792,3.65184974,221.77,221.71,99.40597946]
[1758531500965,2.99184974,221.76,221.71,99.40597946]
[1758531501165,2.99184974,221.75,221.71,94.89559401]
[1758531501371,2.99184974,221.75,221.71,94.19559401]
[1758531501571,0.66,221.77,221.71,94.89559401]
[1758531501788,2.99184974,221.76,221.71,229.29559401]
[1758531501997,2.99184974,221.75,221.71,229.29559401]
[1758531502291,2.99184974,221.76,221.71,229.29559401]
[1758531502489,2.99184974,221.75,221.72,0.7]
[1758531503269,2.99184974,221.74,221.72,0.7]
[1758531503481,2.99184974,221.75,221.71,228.59559401]
[1758531503674,2.99184974,221.74,221.72,0.7]
[1758531503874,2.99184974,221.75,221.72,0.7]
[1758531504093,2.99184974,221.74,221.72,0.7]
[1758531504295,2.99184974,221.75,221.72,0.7]
[1758531504482,2.99184974,221.74,221.72,0.7]
[1758531504790,2.99184974,221.75,221.72,0.7]
[1758531504990,2.99184974,221.74,221.72,0.7]
[1758531505176,2.99184974,221.75,221.72,0.7]
[1758531505375,2.99184974,221.74,221.72,0.7]
[1758531505574,7.5014659,221.75,221.72,0.7]
[1758531505769,2.99184974,221.74,221.72,0.7]
[1758531506278,2.99184974,221.74,221.72,13.59559401]
[1758531506597,2.99184974,221.73,221.72,13.59559401]
[1758531506775,2.99184974,221.74,221.72,13.59559401]
[1758531506975,2.99184974,221.73,221.72,13.59559401]
[1758531507199,2.99184974,221.74,221.72,13.59559401]
[1758531507489,2.99184974,221.73,221.71,215.0]
[1758531507696,2.99184974,221.72,221.71,94.19559401]
[1758531507900,2.99184974,221.73,221.71,94.19559401]
[1758531508079,2.99184974,221.72,221.71,94.19559401]
[1758531508400,2.99184974,221.73,221.71,94.19559401]
[1758531508570,2.99184974,221.72,221.71,94.19559401]
[1758531508773,2.99184974,221.74,221.71,94.19559401]
[1758531508975,2.99184974,221.73,221.71,94.19559401]
[1758531509301,2.99184974,221.72,221.71,94.90559401]
[1758531509592,2.99184974,221.75,221.71,94.90559401]
[1758531509896,2.99184974,221.74,221.72,0.71]
[1758531510069,2.99184974,221.73,221.72,0.71]
[1758531510274,2.99184974,221.74,221.72,0.71]
[1758531510590,2.99184974,221.74,221.73,13.59559401]
[1758531510793,11.09435515,221.87,221.73,14.30559401]
[1758531510794,2.99184974,221.77,221.73,14.30559401]
[1758531510994,2.99184974,221.76,221.75,13.59559401]
[1758531511190,2.99184974,221.81,221.75,94.90559401]
[1758531511500,2.99184974,221.8,221.77,13.59559401]
[1758531511701,2.99184974,221.79,221.78,0.71]
[1758531511902,2.99184974,221.79,221.76,14.30559401]
[1758531512096,2.99184974,221.78,221.77,0.71]
[1758531512274,7.50026233,221.81,221.77,0.71]
[1758531512479,2.99184974,221.8,221.77,0.71]
[1758531512679,2.99184974,221.79,221.76,13.59559401]
[1758531512898,2.99184974,221.78,221.76,13.59559401]
[1758531513098,2.99184974,221.77,221.76,13.59559401]
[1758531513295,2.99184974,221.77,221.75,80.6]
[1758531513296,3.69184974,221.77,221.75,80.6]
[1758531513603,2.99184974,221.76,221.75,80.6]
[1758531514196,2.99184974,221.78,221.75,81.31]
[1758531514389,2.99184974,221.77,221.75,81.31]
[1758531514578,2.99184974,221.78,221.76,0.71]
[1758531514901,2.99184974,221.77,221.75,80.6]
[1758531515204,2.99184974,221.8,221.76,0.71]
[1758531515403,2.99184974,221.79,221.77,0.71]
[1758531515594,2.99184974,221.78,221.77,0.71]
[1758531515796,2.99184974,221.82,221.77,0.71]
[1758531515991,2.99184974,221.81,221.77,81.31]
[1758531516308,3.69184974,221.8,221.77,80.6]
[1758531516487,2.99184974,221.79,221.77,80.6]
[1758531516684,2.99184974,221.78,221.77,80.6]
[1758531517002,2.99184974,221.79,221.77,80.6]
[1758531517306,2.99184974,221.78,221.77,80.6]
[1758531517481,2.99184974,221.79,221.77,80.6]
[1758531517678,2.99184974,221.78,221.77,80.6]
[1758531520606,8.20082259,221.78,221.77,80.6]
[1758531521692,19.47325472,221.78,221.74,80.6]
[1758531521892,3.69184974,221.77,221.74,80.6]
[1758531522126,2.99184974,221.76,221.74,80.6]
[1758531522406,2.99184974,221.75,221.74,80.6]
[1758531523410,7.5014326,221.75,221.74,80.6]
[1758531523809,8.2014326,221.75,221.74,80.6]
[1758531524521,2.99184974,221.75,221.74,80.6]
[1758531525809,2.99184974,221.75,221.74,81.31]
[1758531527594,2.99184974,221.75,221.74,80.6]
[1758531527595,3.69184974,221.75,221.74,80.6]
[1758531528206,8.2014326,221.75,221.74,80.6]
[1758531530699,43.8614326,221.75,221.74,80.6]
[1758531531295,47.59451416,221.75,221.74,80.6]
[1758531533320,2.99184974,221.75,221.74,80.6]
[1758531533517,28.99184974,221.75,221.74,80.6]
[1758531534925,33.5014326,221.75,221.74,80.6]
[1758531538419,2.99184974,221.75,221.74,80.6]
[1758531538731,7.5014326,221.75,221.74,80.6]
[1758531539623,7.5014326,221.75,221.74,81.25]
[1758531539814,7.5014326,221.75,221.74,80.6]
[1758531540219,2.99184974,221.75,221.74,81.25]
[1758531540419,2.99184974,221.75,221.74,99.35538024]
[1758531542232,5.00011408,221.85,221.74,99.35538024]
[1758531542233,2.35682021,221.89,221.8,27.08]
[1758531542410,0.2,222.05,221.89,40.63]
[1758531542610,0.2,222.05,221.81,61.60742173]
[1758531542611,0.71,222.04,221.9,36.64]
[1758531542807,0.71,222.03,221.91,3.20287391]
[1758531543130,0.71,222.02,221.92,35.94]
[1758531543328,0.71,222.02,221.93,40.00629304]
[1758531543530,0.71,222.01,221.94,3.36629304]
[1758531543712,26.71,222.01,221.95,3.36629304]
[1758531543908,0.71,222.01,221.96,3.36629304]
[1758531544221,0.71,222.0,221.93,36.64]
[1758531544420,0.71,222.0,221.94,3.36144036]
[1758531544736,0.71,222.0,221.95,3.36144036]
[1758531544936,0.71,222.0,221.93,41.14587287]
[1758531544937,0.71,221.99,221.96,3.36144036]
[1758531545109,0.71,221.99,221.97,3.36144036]
[1758531545307,0.71,221.99,221.98,3.36144036]
[1758531547116,0.71,221.99,221.93,4.50587287]
[1758531547316,0.71,221.99,221.94,3.3523571]
[1758531547535,0.71,221.99,221.95,3.3523571]
[1758531547726,0.71,221.99,221.93,4.50587287]
[1758531547727,0.71,221.99,221.96,3.3523571]
[1758531547932,0.71,221.99,221.97,3.3523571]
[1758531548130,0.71,221.99,221.93,4.50587287]
[1758531548318,5.21475313,221.99,221.94,3.35003025]
[1758531548523,0.2,222.05,221.98,2.04364063]
[1758531548726,0.2,222.05,222.0,2.04364063]
[1758531549034,0.2,222.05,222.01,3.35003025]
[1758531549336,0.91,222.05,222.02,3.35003025]
[1758531549545,0.91,222.05,222.0,82.64364063]
[1758531549546,0.2,222.05,222.03,3.34547259]
[1758531549750,0.2,222.05,222.01,4.5043016]
[1758531549922,0.2,222.05,222.02,3.34551218]
[1758531550231,0.2,222.05,222.03,3.34551218]
[1758531550450,0.2,222.05,222.01,4.5043016]
[1758531550617,0.91,222.05,222.02,3.34253536]
[1758531550816,0.91,222.05,222.03,3.34253536]
[1758531551036,0.91,222.05,222.01,4.5043016]
[1758531551240,0.91,222.05,222.02,3.34253728]
[1758531551446,0.91,222.05,222.03,3.34253728]
[1758531551640,0.91,222.05,222.04,3.34253728]
[1758531552043,0.2,222.05,222.04,3.34253728]
[1758531553550,0.2,222.05,222.02,6.54761107]
[1758531557358,0.2,222.05,222.01,13.59559401]
[1758531557561,0.9,222.05,222.02,3.32690927]
[1758531557857,0.9,222.05,222.01,13.59559401]
[1758531558069,0.2,222.05,222.02,3.32691022]
[1758531558269,0.2,222.05,222.01,230.63923464]
[1758531558470,0.2,222.05,222.02,4.50395996]
[1758531558670,0.2,222.05,222.01,215.0]
[1758531558978,0.7,222.04,222.01,215.0]
[1758531559191,0.7,222.03,222.01,215.0]
[1758531561961,37.2,222.05,222.01,215.0]
[1758531562149,0.7,222.04,222.01,215.0]
[1758531562350,37.0,222.04,222.01,215.0]
[1758531562759,0.7,222.03,222.01,215.0]
[1758531562968,0.7,222.02,222.01,215.0]
[1758531563144,0.7,222.02,222.01,80.6]
[1758531564776,5.20409872,222.02,222.01,80.6]
[1758531565273,5.20409872,222.02,221.96,85.10530153]
[1758531565485,36.3,222.04,221.96,85.10530153]
[1758531565486,0.7,222.01,221.96,85.10530153]
[1758531565769,0.7,222.0,221.96,85.10530153]
[1758531565945,0.7,222.0,221.96,80.6]
[1758531566153,0.7,221.99,221.96,80.6]
[1758531566566,0.7,222.01,221.96,80.6]
[1758531566874,0.7,222.0,221.96,80.6]
[1758531567055,0.67,221.99,221.96,80.6]
[1758531567251,0.67,222.01,221.96,80.6]
[1758531567450,36.22,222.01,221.97,13.59559401]
[1758531568382,26.0,222.04,221.97,15.63923464]
[1758531568553,36.2,222.03,221.99,2.04364063]
[1758531568754,26.0,222.04,221.99,2.04364063]
[1758531568980,62.22,222.04,221.99,13.59559401]
[1758531569277,62.89,222.04,221.99,13.59559401]
[1758531569479,26.67,222.04,221.99,18.10013939]
[1758531569795,26.67,222.04,221.99,13.59559401]
[1758531569796,0.67,222.03,221.99,13.59559401]
[1758531570074,62.2,222.04,221.99,98.7002868]
[1758531570384,0.67,222.03,221.99,94.19559401]
[1758531570686,0.67,222.02,221.99,80.6]
[1758531571084,0.67,222.01,221.99,80.6]
[1758531571259,36.87,222.01,221.99,80.6]
[1758531571861,0.67,222.01,221.99,80.6]
[1758531572061,36.85,222.01,221.99,80.6]
[1758531573772,36.83,222.01,221.99,80.6]
[1758531573960,36.16,222.01,221.99,80.6]
[1758531574170,0.67,222.0,221.99,80.6]
[1758531578391,5.1745045,222.0,221.99,80.6]
[1758531592089,41.0745045,222.0,221.99,80.6]
[1758531592904,41.0545045,222.0,221.99,80.6]
[1758531593204,41.0345045,222.0,221.99,80.6]
[1758531593582,5.1745045,222.0,221.99,80.6]
[1758531593912,41.0345045,222.0,221.99,80.6]
[1758531594105,44.04770909,222.0,221.99,80.6]
[1758531594898,8.18770909,222.0,221.99,80.6]
[1758531595207,41.0345045,222.0,221.99,80.6]
[1758531595391,44.04770909,222.0,221.99,80.6]
[1758531595590,8.18770909,222.0,221.99,80.6]
[1758531595794,5.1745045,222.0,221.99,80.6]
[1758531596293,40.9945045,222.0,221.99,80.6]
[1758531597479,5.1745045,222.0,221.99,80.6]
[1758531597779,40.9745045,222.0,221.99,80.6]
[1758531599610,5.1745045,222.0,221.99,80.6]
[1758531599827,40.9745045,222.0,221.99,80.6]
[1758531600221,0.67,222.0,221.99,80.6]
[1758531600386,3.01573982,222.02,221.99,80.6]
[1758531600717,35.76,222.02,221.99,87.14834804]
[1758531600894,35.76,222.02,221.99,85.10470741]
[1758531602394,0.7,222.01,221.99,80.6]
[1758531603112,3.01959764,222.01,221.99,80.6]
[1758531603894,0.7,222.0,221.99,80.6]
[1758531604090,29.71959764,222.0,221.99,80.6]
[1758531604313,34.22410214,222.0,221.99,80.6]
[1758531604497,69.98410214,222.0,221.99,80.6]
[1758531605113,34.22410214,222.0,221.99,80.6]
[1758531605423,69.98410214,222.0,221.99,80.6]
[1758531608602,81.2453634,222.0,221.93,80.6]
[1758531608892,3.71959764,221.99,221.93,80.6]
[1758531609106,39.43959764,221.98,221.93,80.6]
[1758531609314,3.01959764,221.97,221.93,80.6]
[1758531609607,3.01959764,221.99,221.97,13.59559401]
[1758531609812,3.01959764,222.03,221.99,13.59559401]
[1758531610009,37.31959764,222.02,221.99,16.78926575]
[1758531610215,3.01959764,222.01,221.95,35.74]
[1758531610520,3.01959764,222.0,221.97,13.59559401]
[1758531610821,0.7,222.0,221.94,13.59559401]
[1758531611136,34.15959764,221.99,221.94,18.10130223]
[1758531611313,3.01959764,221.98,221.94,18.10130223]
[1758531611518,3.01959764,221.99,221.97,3.19367174]
[1758531611716,3.01959764,222.04,221.98,3.19367174]
[1758531611912,38.79959764,222.03,221.98,3.19367174]
[1758531612116,3.01959764,222.02,221.99,13.59559401]
[1758531612308,3.01959764,222.01,221.99,13.59559401]
[1758531612628,3.71959764,222.03,221.99,94.19559401]
[1758531612826,3.68959764,222.02,221.99,80.6]
[1758531613025,3.01959764,222.01,221.99,80.6]
[1758531613229,3.01959764,222.0,221.99,80.6]
[1758531613414,3.01959764,222.0,221.98,13.59559401]
[1758531613707,3.01959764,221.99,221.98,13.59559401]
[1758531613902,3.01959764,222.0,221.98,13.59559401]
[1758531614224,3.01959764,221.99,221.98,13.59559401]
[1758531614407,3.01959764,221.99,221.97,80.6]
[1758531614613,3.01959764,221.98,221.95,18.10106546]
[1758531614830,3.01959764,221.97,221.95,18.10106546]
[1758531615015,3.01959764,221.99,221.95,18.10106546]
[1758531615325,35.78,222.0,221.95,18.10106546]
[1758531615326,3.01959764,221.98,221.95,18.10106546]
[1758531615636,3.01959764,221.97,221.95,21.2947372]
[1758531615801,3.01959764,221.99,221.95,32.55853535]
[1758531616008,3.01959764,221.98,221.95,29.36486361]
[1758531616231,3.01959764,221.99,221.95,29.36486361]
[1758531616524,3.01959764,221.98,221.95,29.36486361]
[1758531616728,38.77959764,222.0,221.95,29.36486361]
[1758531616930,3.01959764,221.99,221.95,18.10106546]
[1758531617135,3.68959764,221.98,221.94,80.6]
[1758531617310,3.68959764,221.97,221.94,80.6]
[1758531617631,3.01959764,221.96,221.94,80.6]
[1758531617830,3.01959764,221.95,221.94,94.19559401]
[1758531618017,3.01959764,221.96,221.94,94.19559401]
[1758531618331,3.01959764,221.95,221.94,94.19559401]
[1758531620033,3.01959764,221.95,221.94,80.6]
[1758531620538,3.01959764,221.95,221.94,94.19559401]
[1758531622355,3.01959764,221.95,221.94,101.89498801]
[1758531622534,38.71959764,222.0,221.94,101.89498801]
[1758531622714,3.01959764,221.99,221.97,13.59559401]
[1758531622914,3.01959764,221.98,221.97,13.59559401]
[1758531623115,3.01959764,221.98,221.96,13.59559401]
[1758531623321,3.01959764,221.97,221.96,13.59559401]
[1758531623634,3.01959764,221.97,221.95,3.19367174]
[1758531623811,0.67,222.0,221.96,13.59559401]
[1758531624130,3.03204591,221.99,221.96,13.59559401]
[1758531624330,3.03204591,221.98,221.97,13.59559401]
[1758531624521,37.6128177,222.05,221.97,101.89437905]
[1758531624731,3.03081455,222.04,222.0,3.19367174]
[1758531625029,3.03081455,222.03,222.0,3.19367174]
[1758531625231,3.03081455,222.02,222.01,13.59559401]
[1758531625608,3.03081455,222.02,222.0,13.59559401]
[1758531625814,3.03081455,222.01,222.0,13.59559401]
[1758531626657,3.03081455,222.01,222.0,18.10009851]
[1758531629322,3.03081455,222.01,222.0,98.70009851]
[1758531629722,3.02841845,222.03,222.02,91.16477946]
[1758531629929,3.02841845,222.03,222.02,225.56477946]
[1758531630622,0.2,222.05,222.02,225.56477946]
[1758531630926,0.86,222.05,222.02,228.7584512]
[1758531631146,0.2,222.05,222.02,228.7584512]
[1758531631340,0.2,222.05,222.02,225.56477946]
[1758531631843,0.2,222.05,222.03,21.29316161]
[1758531632025,0.2,222.05,222.04,16.78926575]
[1758531632225,0.2,222.05,222.04,228.7584512]
[1758531632419,0.2,222.05,222.04,230.56436104]
[1758531633040,0.2,222.05,222.04,233.93561862]
[1758531633243,0.2,222.05,222.04,238.43931164]
[1758531633442,0.2,222.05,222.04,100.8456399]
[1758531633746,0.2,222.05,222.04,99.03973006]
[1758531634438,0.2,222.05,222.04,94.53603704]
[1758531634638,0.2,222.05,222.04,99.03973006]
[1758531635658,0.86,222.05,222.04,3.37125758]
[1758531635940,0.86,222.05,222.02,77.56918545]
[1758531636124,0.66,222.04,222.03,3.36826334]
[1758531637049,5.16369302,222.04,222.03,3.36826334]
[1758531638230,5.16369302,222.04,221.99,13.59559401]
[1758531638424,0.66,222.03,222.0,3.3675703]
[1758531638638,0.66,222.02,222.01,3.3675703]
[1758531641249,0.66,222.02,222.01,83.9675703]
[1758531642743,38.56433168,222.03,222.01,88.47184112]
[1758531643052,3.02433168,222.02,222.01,85.10427082]
[1758531643250,3.68433168,222.02,222.01,83.96755831]
[1758531643832,3.68433168,222.02,222.01,80.6]
[1758531644832,8.1884304,222.02,222.01,80.6]
[1758531645033,39.22433168,222.02,222.01,80.6]
[1758531645536,43.7284304,222.02,222.01,80.6]
[1758531646648,54.98867722,222.02,221.96,80.6]
[1758531646855,3.68433168,222.01,221.97,3.36872273]
[1758531647042,8.18883618,222.0,221.96,80.6]
[1758531647352,38.54433168,221.99,221.97,3.36872539]
[1758531647555,39.20433168,221.98,221.96,80.6]
[1758531647761,34.20433168,221.98,221.97,3.36864038]
[1758531648049,4.5045045,222.0,221.97,3.36864038]
[1758531648228,35.5,221.99,221.96,80.6]
[1758531648429,35.5,221.99,221.97,3.3685642]
[1758531648733,40.00483771,221.99,221.96,80.6]
[1758531649057,4.50449821,222.01,221.97,3.368563]
[1758531649256,35.5,222.0,221.96,80.6]
[1758531649760,0.66,221.99,221.96,80.6]
[1758531649941,35.5,221.98,221.96,80.6]
[1758531650252,0.66,221.98,221.96,80.6]
[1758531650658,36.14,221.98,221.96,80.6]
[1758531651256,40.64496574,221.98,221.96,80.6]
[1758531651965,0.66,221.97,221.96,80.6]
[1758531652638,5.1651133,221.97,221.96,80.6]
[1758531652961,40.6251133,221.97,221.96,80.6]
[1758531653170,5.1651133,221.97,221.96,80.6]
[1758531653374,40.6251133,221.97,221.96,80.6]
[1758531653531,5.1651133,221.97,221.96,80.6]
[1758531653943,40.6251133,221.97,221.96,80.6]
[1758531656238,5.1651133,221.97,221.96,80.6]
[1758531656440,40.6051133,221.97,221.96,80.6]
[1758531657259,5.1651133,221.97,221.96,80.6]
[1758531657458,40.5851133,221.97,221.96,80.6]
[1758531659261,0.66,221.97,221.96,80.6]
[1758531659448,5.1651133,221.97,221.96,80.6]
[1758531659642,40.5651133,221.97,221.96,80.6]
[1758531659842,43.58475808,221.97,221.96,80.6]
[1758531660642,3.01964478,221.97,221.96,98.04926575]
[1758531660847,35.38,222.02,221.97,13.59559401]
[1758531661057,3.01964478,222.01,221.98,0.66]
[1758531661766,3.01964478,222.01,221.99,0.66]
[1758531661967,3.01964478,222.02,222.0,0.66]
[1758531662157,35.4,222.03,222.01,0.66]
[1758531662463,35.4,222.03,221.98,3.85367174]
[1758531662464,3.01964478,222.02,221.98,3.85367174]
[1758531663145,38.41964478,222.02,221.98,8.35857099]
[1758531663349,3.01964478,222.01,221.98,8.35857099]
[1758531664858,35.38,222.02,221.98,88.95857099]
[1758531665264,0.67,222.04,221.98,88.95857099]
[1758531665265,26.2,222.05,222.0,3.19367174]
[1758531665561,3.02116383,222.04,222.01,0.66]
[1758531665750,26.2,222.05,222.02,3.19367174]
[1758531666079,0.2,222.05,222.03,0.66]
[1758531666247,3.22181262,222.05,222.03,0.66]
[1758531666764,3.22181262,222.05,222.03,5.16370714]
[1758531667554,0.67,222.04,222.02,80.6]
[1758531667761,0.67,222.03,222.02,80.6]
[1758531667959,3.02181262,222.04,222.02,80.6]
[1758531668156,3.89181262,222.05,222.02,80.6]
[1758531668552,0.67,222.04,222.02,80.6]
[1758531668753,36.03,222.03,222.02,80.6]
[1758531668956,39.05181262,222.03,222.02,80.6]
[1758531670862,39.05181262,222.03,221.99,138.90467554]
[1758531670863,3.02181262,222.03,221.99,87.80648786]
[1758531671165,35.38,222.03,222.0,0.66]
[1758531671368,35.36,222.04,222.0,0.66]
[1758531671565,3.02066299,222.03,221.99,87.14648786]
[1758531671866,3.02066299,222.03,221.99,85.76467554]
[1758531672760,3.02066299,222.03,222.0,2.70181232]
[1758531672953,0.2,222.05,222.01,2.70181232]
[1758531673156,0.67,222.04,222.01,80.6]
[1758531673468,3.02174497,222.04,222.01,80.6]
[1758531673669,3.69174497,222.03,222.01,80.6]
[1758531673968,0.67,222.02,222.01,80.6]
[1758531674473,39.05174497,222.02,222.01,80.6]
[1758531674695,43.55584369,222.02,222.01,80.6]